[Event "Live Chess"]
[Site "Chess.com"]
[Date "2023.05.21"]
[Round "-"]
[White "CroasArRheun"]
[Black "martynstanley"]
[Result "1-0"]
[WhiteElo "1842"]
[BlackElo "999"]
[TimeControl "300"]
[EndTime "23:37:46 PDT"]
[Termination "CroasArRheun won by checkmate"]

1. d4 {[%clk 0:04:59.2]} 1... e6 {[%clk 0:04:59.2]} 2. c4 {[%clk 0:04:57.7]}
2... d5 {[%clk 0:04:58.8]} 3. Nc3 {[%clk 0:04:56.6]} 3... c5 {[%clk 0:04:57.9]}
4. dxc5 {[%clk 0:04:55.7]} 4... Bxc5 {[%clk 0:04:56]} 5. cxd5 {[%clk 0:04:55.6]}
5... Qb6 {[%clk 0:04:55.1]} 6. e3 {[%clk 0:04:53.1]} 6... exd5 {[%clk
0:04:52.3]} 7. Qxd5 {[%clk 0:04:45]} 7... Ne7 {[%clk 0:04:47.8]} 8. Bb5+ {[%clk
0:04:42.2]} 8... Bd7 {[%clk 0:04:45.1]} 9. Bxd7+ {[%clk 0:04:39.6]} 9... Nxd7
{[%clk 0:04:43]} 10. Qd3 {[%clk 0:04:35.3]} 10... O-O-O {[%clk 0:04:39.6]} 11.
Nf3 {[%clk 0:04:33.3]} 11... Nf6 {[%clk 0:04:38.2]} 12. Qc2 {[%clk 0:04:29]}
12... Rd7 {[%clk 0:04:34.6]} 13. O-O {[%clk 0:04:27.4]} 13... Rhd8 {[%clk
0:04:33.9]} 14. Ne5 {[%clk 0:04:25]} 14... Rd6 {[%clk 0:04:30.9]} 15. Nxf7
{[%clk 0:04:18.7]} 15... R8d7 {[%clk 0:04:26.5]} 16. Nxd6+ {[%clk 0:04:16.6]}
16... Rxd6 {[%clk 0:04:25.8]} 17. Na4 {[%clk 0:04:13.4]} 17... Qa5 {[%clk
0:04:23.7]} 18. Qxc5+ {[%clk 0:04:11.1]} 18... Qxc5 {[%clk 0:04:22.6]} 19. Nxc5
{[%clk 0:04:11]} 19... b6 {[%clk 0:04:20.9]} 20. Nb3 {[%clk 0:04:09.9]} 20...
Ne4 {[%clk 0:04:16.9]} 21. Nd4 {[%clk 0:04:07.3]} 21... Ng6 {[%clk 0:04:14.3]}
22. f3 {[%clk 0:04:06.1]} 22... Nc5 {[%clk 0:04:10.6]} 23. Bd2 {[%clk
0:04:04.9]} 23... Nd3 {[%clk 0:04:08.1]} 24. b3 {[%clk 0:04:02.6]} 24... Nge5
{[%clk 0:04:06.4]} 25. Rfd1 {[%clk 0:03:56.3]} 25... Kc7 {[%clk 0:04:03.3]} 26.
Nb5+ {[%clk 0:03:54]} 26... Kd7 {[%clk 0:04:00.6]} 27. Nxd6 {[%clk 0:03:53.9]}
27... Kxd6 {[%clk 0:04:00]} 28. Bb4+ {[%clk 0:03:53.5]} 28... Ke6 {[%clk
0:03:56.7]} 29. Bc3 {[%clk 0:03:51.6]} 29... g6 {[%clk 0:03:54.8]} 30. f4 {[%clk
0:03:47.9]} 30... Kf5 {[%clk 0:03:45.7]} 31. fxe5 {[%clk 0:03:45.8]} 31... Nxe5
{[%clk 0:03:43.2]} 32. Rd5 {[%clk 0:03:44.3]} 32... Ke4 {[%clk 0:03:41.6]} 33.
Rxe5+ {[%clk 0:03:43.4]} 33... Kd3 {[%clk 0:03:40.5]} 34. Bd4 {[%clk 0:03:42.3]}
34... h6 {[%clk 0:03:37.9]} 35. Kf2 {[%clk 0:03:41]} 35... g5 {[%clk 0:03:37.1]}
36. Rd1+ {[%clk 0:03:39.6]} 36... Kc2 {[%clk 0:03:35.6]} 37. Ke2 {[%clk
0:03:38.9]} 37... h5 {[%clk 0:03:33.7]} 38. Rd2+ {[%clk 0:03:38.1]} 38... Kb1
{[%clk 0:03:32.4]} 39. Rb2+ {[%clk 0:03:36.6]} 39... Ka1 {[%clk 0:03:30.1]} 40.
Kd2 {[%clk 0:03:34.1]} 40... g4 {[%clk 0:03:28.6]} 41. Kc1 {[%clk 0:03:28.8]}
41... h4 {[%clk 0:03:26.7]} 42. Rc2# {[%clk 0:03:27.9]} 1-0

[Event "Live Chess"]
[Site "Chess.com"]
[Date "2023.05.21"]
[Round "-"]
[White "DaveL5678"]
[Black "smoggyrabbit"]
[Result "1-0"]
[WhiteElo "1022"]
[BlackElo "1722"]
[TimeControl "300"]
[EndTime "23:38:01 PDT"]
[Termination "DaveL5678 won on time"]

1. e4 {[%clk 0:04:56.6]} 1... e6 {[%clk 0:04:58.9]} 2. d4 {[%clk 0:04:53.3]}
2... d5 {[%clk 0:04:57.9]} 3. Nc3 {[%clk 0:04:45.6]} 3... Nf6 {[%clk 0:04:54.2]}
4. e5 {[%clk 0:04:44]} 4... Nfd7 {[%clk 0:04:52.7]} 5. f4 {[%clk 0:04:37.9]}
5... c5 {[%clk 0:04:49.9]} 6. Nf3 {[%clk 0:04:34.2]} 6... Nc6 {[%clk 0:04:48.6]}
7. Bb5 {[%clk 0:04:23.3]} 7... Be7 {[%clk 0:04:14.2]} 8. O-O {[%clk 0:04:12.5]}
8... O-O {[%clk 0:04:09]} 9. Be3 {[%clk 0:03:59.2]} 9... a6 {[%clk 0:03:40.7]}
10. Bxc6 {[%clk 0:03:48.2]} 10... bxc6 {[%clk 0:03:40.6]} 11. dxc5 {[%clk
0:03:34.8]} 11... Bxc5 {[%clk 0:03:26.4]} 12. Nd4 {[%clk 0:03:21.1]} 12... Bb7
{[%clk 0:03:14.3]} 13. Na4 {[%clk 0:03:11.9]} 13... Bxd4 {[%clk 0:03:05.2]} 14.
Bxd4 {[%clk 0:03:07.9]} 14... Qe7 {[%clk 0:02:53]} 15. a3 {[%clk 0:02:50.7]}
15... c5 {[%clk 0:02:48.1]} 16. Be3 {[%clk 0:02:42.8]} 16... Bc6 {[%clk
0:02:39.6]} 17. c3 {[%clk 0:02:32.7]} 17... Rab8 {[%clk 0:02:27.6]} 18. b4
{[%clk 0:02:30.3]} 18... cxb4 {[%clk 0:02:17.1]} 19. cxb4 {[%clk 0:02:28.7]}
19... Bb5 {[%clk 0:02:10]} 20. Rf2 {[%clk 0:02:17]} 20... Rfc8 {[%clk
0:02:07.3]} 21. h3 {[%clk 0:01:48.8]} 21... Rc4 {[%clk 0:01:35.1]} 22. Nb2
{[%clk 0:01:33.4]} 22... Rc3 {[%clk 0:01:19.7]} 23. Bd4 {[%clk 0:01:23.1]} 23...
Rc6 {[%clk 0:01:05.4]} 24. Rc1 {[%clk 0:01:09]} 24... Rbc8 {[%clk 0:01:01.8]}
25. Rxc6 {[%clk 0:01:04.7]} 25... Rxc6 {[%clk 0:00:31.2]} 26. Rc2 {[%clk
0:00:59.1]} 26... Rxc2 {[%clk 0:00:17.7]} 27. Qxc2 {[%clk 0:00:57.9]} 27... Qd8
{[%clk 0:00:16.1]} 28. Bc5 {[%clk 0:00:49.8]} 28... Qc7 {[%clk 0:00:13.7]} 29.
Qf2 {[%clk 0:00:39.8]} 29... Nxc5 {[%clk 0:00:12.7]} 30. Qxc5 {[%clk 0:00:37.1]}
30... Qxc5+ {[%clk 0:00:11.3]} 31. bxc5 {[%clk 0:00:36.2]} 31... d4 {[%clk
0:00:10.2]} 32. a4 {[%clk 0:00:32.3]} 32... Bd7 {[%clk 0:00:08.5]} 33. Nd3
{[%clk 0:00:29.3]} 33... Bxa4 {[%clk 0:00:06.8]} 34. Nb4 {[%clk 0:00:25.6]}
34... Kf8 {[%clk 0:00:05.5]} 35. c6 {[%clk 0:00:23.8]} 35... Ke8 {[%clk
0:00:03.8]} 36. c7 {[%clk 0:00:20.6]} 36... Kd7 {[%clk 0:00:03.1]} 37. Nxa6
{[%clk 0:00:19.5]} 37... d3 {[%clk 0:00:02.3]} 38. Nc5+ {[%clk 0:00:17.6]} 38...
Kxc7 {[%clk 0:00:01.3]} 39. Nxa4 {[%clk 0:00:16.6]} 39... d2 {[%clk 0:00:00.8]}
40. Nc3 {[%clk 0:00:15.4]} 40... Kc6 {[%clk 0:00:00.3]} 41. Kf2 {[%clk
0:00:14.5]} 41... Kc5 {[%clk 0:00:00.2]} 42. Ke2 {[%clk 0:00:13.6]} 42... Kd4
{[%clk 0:00:00.1]} 43. Kxd2 {[%clk 0:00:12.5]} 1-0

[Event "Live Chess"]
[Site "Chess.com"]
[Date "2023.05.21"]
[Round "-"]
[White "diana21strabt"]
[Black "Ferrarifan27"]
[Result "1-0"]
[WhiteElo "1721"]
[BlackElo "2051"]
[TimeControl "300"]
[EndTime "23:38:03 PDT"]
[Termination "diana21strabt won by checkmate"]

1. e4 {[%clk 0:04:57.7]} 1... e5 {[%clk 0:04:58.7]} 2. Nf3 {[%clk 0:04:56.6]}
2... Nc6 {[%clk 0:04:56.7]} 3. d4 {[%clk 0:04:54.5]} 3... exd4 {[%clk
0:04:53.4]} 4. Bc4 {[%clk 0:04:53.5]} 4... Bb4+ {[%clk 0:04:51.5]} 5. c3 {[%clk
0:04:51.9]} 5... dxc3 {[%clk 0:04:51.4]} 6. O-O {[%clk 0:04:50.8]} 6... d6
{[%clk 0:04:48.6]} 7. Nxc3 {[%clk 0:04:47]} 7... Bxc3 {[%clk 0:04:47.1]} 8. bxc3
{[%clk 0:04:46.1]} 8... Nf6 {[%clk 0:04:46.6]} 9. Bg5 {[%clk 0:04:39.5]} 9...
O-O {[%clk 0:04:45.1]} 10. Re1 {[%clk 0:04:33.1]} 10... Bg4 {[%clk 0:04:40.7]}
11. h3 {[%clk 0:04:31.1]} 11... Bxf3 {[%clk 0:04:28.2]} 12. Qxf3 {[%clk
0:04:29.6]} 12... Ne5 {[%clk 0:04:27.4]} 13. Qe2 {[%clk 0:04:22.4]} 13... Nxc4
{[%clk 0:04:24.4]} 14. Qxc4 {[%clk 0:04:21.4]} 14... h6 {[%clk 0:04:23.4]} 15.
Bh4 {[%clk 0:04:19.1]} 15... Re8 {[%clk 0:04:22.4]} 16. Rad1 {[%clk 0:04:16.2]}
16... Re5 {[%clk 0:04:18.8]} 17. Qb3 {[%clk 0:04:11.7]} 17... b6 {[%clk
0:04:16.1]} 18. Qc4 {[%clk 0:04:07.9]} 18... Qe7 {[%clk 0:04:05.1]} 19. Bxf6
{[%clk 0:04:05]} 19... gxf6 {[%clk 0:03:59]} 20. Rd3 {[%clk 0:04:03.2]} 20...
Kh7 {[%clk 0:03:57.1]} 21. Rg3 {[%clk 0:04:01.6]} 21... f5 {[%clk 0:03:52.2]}
22. Rf3 {[%clk 0:03:56.1]} 22... fxe4 {[%clk 0:03:50.1]} 23. Rxf7+ {[%clk
0:03:53.6]} 23... Kg6 {[%clk 0:03:47.2]} 24. Rxe7 {[%clk 0:03:52]} 24... Rxe7
{[%clk 0:03:47.1]} 25. Rxe4 {[%clk 0:03:49.3]} 25... Rae8 {[%clk 0:03:39.6]} 26.
Rg4+ {[%clk 0:03:44]} 26... Kh7 {[%clk 0:03:37.8]} 27. Qd3+ {[%clk 0:03:41.4]}
27... Kh8 {[%clk 0:03:36.9]} 28. Qd4+ {[%clk 0:03:37.9]} 28... Kh7 {[%clk
0:03:33.9]} 29. Qd3+ {[%clk 0:03:31.3]} 29... Kh8 {[%clk 0:03:32.5]} 30. Qg6
{[%clk 0:03:29]} 30... Rh7 {[%clk 0:03:25.6]} 31. Qxe8# {[%clk 0:03:24.9]} 1-0

[Event "Live Chess"]
[Site "Chess.com"]
[Date "2023.05.21"]
[Round "-"]
[White "Hacker_2009"]
[Black "Doge_Dandolo"]
[Result "1/2-1/2"]
[WhiteElo "1936"]
[BlackElo "1909"]
[TimeControl "300"]
[EndTime "23:38:13 PDT"]
[Termination "Game drawn by agreement"]

1. d4 {[%clk 0:04:57.4]} 1... d5 {[%clk 0:04:57.8]} 2. Nf3 {[%clk 0:04:54.6]}
2... Nf6 {[%clk 0:04:55.7]} 3. e3 {[%clk 0:04:53.8]} 3... Bg4 {[%clk 0:04:53.9]}
4. c4 {[%clk 0:04:52.9]} 4... c6 {[%clk 0:04:52.2]} 5. cxd5 {[%clk 0:04:51.3]}
5... cxd5 {[%clk 0:04:50.8]} 6. Be2 {[%clk 0:04:50.6]} 6... Nc6 {[%clk
0:04:47.5]} 7. Nc3 {[%clk 0:04:48.7]} 7... e6 {[%clk 0:04:45.3]} 8. O-O {[%clk
0:04:46.4]} 8... Be7 {[%clk 0:04:42.5]} 9. b3 {[%clk 0:04:45]} 9... O-O {[%clk
0:04:40.4]} 10. Bb2 {[%clk 0:04:44.4]} 10... a6 {[%clk 0:04:39.3]} 11. Rc1
{[%clk 0:04:42.4]} 11... Rc8 {[%clk 0:04:38]} 12. Na4 {[%clk 0:04:40.8]} 12...
Ne4 {[%clk 0:04:29.3]} 13. Ne5 {[%clk 0:04:32]} 13... Bxe2 {[%clk 0:04:26.1]}
14. Qxe2 {[%clk 0:04:31.5]} 14... Nxe5 {[%clk 0:04:24.4]} 15. dxe5 {[%clk
0:04:31]} 15... b5 {[%clk 0:04:20.8]} 16. Nc3 {[%clk 0:04:28.1]} 16... Nxc3
{[%clk 0:04:16.1]} 17. Bxc3 {[%clk 0:04:28]} 17... Qb6 {[%clk 0:04:12.6]} 18.
Bd4 {[%clk 0:04:26.3]} 18... Qb8 {[%clk 0:04:11.1]} 19. f4 {[%clk 0:04:23.9]}
19... g6 {[%clk 0:04:08.6]} 20. g4 {[%clk 0:04:21.3]} 20... Ba3 {[%clk
0:04:00.4]} 21. Rxc8 {[%clk 0:04:17.8]} 21... Rxc8 {[%clk 0:03:58.6]} 22. f5
{[%clk 0:04:17.2]} 22... Qc7 {[%clk 0:03:47]} 23. e4 {[%clk 0:04:04.6]} 23...
dxe4 {[%clk 0:03:43.1]} 24. Qxe4 {[%clk 0:04:02]} 24... Qc2 {[%clk 0:03:37.7]}
25. Qxc2 {[%clk 0:03:59.8]} 25... Rxc2 {[%clk 0:03:35.7]} 26. fxe6 {[%clk
0:03:57.7]} 26... fxe6 {[%clk 0:03:32]} 27. Rf6 {[%clk 0:03:55.8]} 27... Rxa2
{[%clk 0:03:25.4]} 28. Rxe6 {[%clk 0:03:52.1]} 28... Bb4 {[%clk 0:03:19]} 29.
Kf1 {[%clk 0:03:30.2]} 29... Rd2 {[%clk 0:03:14.9]} 30. Bb6 {[%clk 0:03:19.5]}
30... a5 {[%clk 0:03:08.1]} 31. Rc6 {[%clk 0:03:14.8]} 31... Rxh2 {[%clk
0:03:01.6]} 32. e6 {[%clk 0:03:10.1]} 32... Kf8 {[%clk 0:02:59.5]} 33. Bc5+
{[%clk 0:03:06.6]} 33... Bxc5 {[%clk 0:02:57.2]} 34. Rxc5 {[%clk 0:03:03.9]}
34... a4 {[%clk 0:02:56]} 35. Rxb5 {[%clk 0:03:00.9]} 35... axb3 {[%clk
0:02:55]} 36. Rxb3 {[%clk 0:02:59.4]} 36... Ke7 {[%clk 0:02:54.3]} 37. Re3
{[%clk 0:02:57.1]} 1/2-1/2

[Event "Live Chess"]
[Site "Chess.com"]
[Date "2023.05.21"]
[Round "-"]
[White "Ian-Morley"]
[Black "CeladonFish"]
[Result "1-0"]
[WhiteElo "1002"]
[BlackElo "1074"]
[TimeControl "300"]
[EndTime "23:38:50 PDT"]
[Termination "Ian-Morley won by resignation"]

1. e4 {[%clk 0:04:59.4]} 1... d6 {[%clk 0:04:58.7]} 2. d4 {[%clk 0:04:58.3]}
2... Nf6 {[%clk 0:04:57.6]} 3. e5 {[%clk 0:04:57.4]} 3... dxe5 {[%clk
0:04:56.4]} 4. dxe5 {[%clk 0:04:56.8]} 4... Qxd1+ {[%clk 0:04:55.6]} 5. Kxd1
{[%clk 0:04:56.1]} 5... Ng4 {[%clk 0:04:54.4]} 6. Ke2 {[%clk 0:04:53.8]} 6...
Nxe5 {[%clk 0:04:52.4]} 7. Bf4 {[%clk 0:04:52.9]} 7... Ng6 {[%clk 0:04:49.8]} 8.
Bxc7 {[%clk 0:04:51.6]} 8... Nc6 {[%clk 0:04:48.9]} 9. Nc3 {[%clk 0:04:50]} 9...
Nd4+ {[%clk 0:04:42.7]} 10. Kd3 {[%clk 0:04:48.3]} 10... e5 {[%clk 0:04:30.8]}
11. Nf3 {[%clk 0:04:46]} 11... Nf4+ {[%clk 0:04:27.4]} 12. Kd2 {[%clk
0:04:42.1]} 12... Bf5 {[%clk 0:04:18.6]} 13. Bxe5 {[%clk 0:04:40.2]} 13... Nxc2
{[%clk 0:04:15.8]} 14. Rc1 {[%clk 0:04:35]} 14... f6 {[%clk 0:03:49.7]} 15. Bxf4
{[%clk 0:04:33.6]} 15... g5 {[%clk 0:03:47]} 16. Bb5+ {[%clk 0:04:28.6]} 16...
Kf7 {[%clk 0:03:43.7]} 17. Rxc2 {[%clk 0:04:23.9]} 17... Bxc2 {[%clk 0:03:42.2]}
18. Kxc2 {[%clk 0:04:23.2]} 18... gxf4 {[%clk 0:03:41.8]} 19. Re1 {[%clk
0:04:20.5]} 19... a6 {[%clk 0:03:40.1]} 20. Bc4+ {[%clk 0:04:19.3]} 20... Kg7
{[%clk 0:03:38.2]} 21. Ne4 {[%clk 0:04:16.8]} 21... b5 {[%clk 0:03:36.3]} 22.
Be6 {[%clk 0:04:14.5]} 22... Re8 {[%clk 0:03:34.4]} 23. Bd5 {[%clk 0:04:11.3]}
23... Bb4 {[%clk 0:03:27.7]} 24. Re2 {[%clk 0:04:08.3]} 24... f5 {[%clk
0:03:24.3]} 25. Neg5 {[%clk 0:04:01.8]} 25... Rd8 {[%clk 0:03:22.6]} 26. Ne6+
{[%clk 0:03:56]} 26... Kf7 {[%clk 0:03:19.7]} 27. Nxd8+ {[%clk 0:03:54.8]} 27...
Kf6 {[%clk 0:03:15.5]} 28. Re6+ {[%clk 0:03:51.9]} 28... Kg7 {[%clk 0:03:13.9]}
29. Nc6 {[%clk 0:03:43.1]} 1-0

[Event "Live Chess"]
[Site "Chess.com"]
[Date "2023.05.21"]
[Round "-"]
[White "Supertromp"]
[Black "raminguy"]
[Result "0-1"]
[WhiteElo "2131"]
[BlackElo "1948"]
[TimeControl "300"]
[EndTime "23:39:06 PDT"]
[Termination "raminguy won by checkmate"]

1. e4 {[%clk 0:04:58.9]} 1... e5 {[%clk 0:04:57.4]} 2. Nf3 {[%clk 0:04:58.2]}
2... Nc6 {[%clk 0:04:56.9]} 3. Bc4 {[%clk 0:04:57.7]} 3... Bc5 {[%clk
0:04:56.1]} 4. c3 {[%clk 0:04:57.1]} 4... Nf6 {[%clk 0:04:55.5]} 5. d4 {[%clk
0:04:56.7]} 5... exd4 {[%clk 0:04:55.4]} 6. b4 {[%clk 0:04:55.9]} 6... Be7
{[%clk 0:04:54]} 7. e5 {[%clk 0:04:55.2]} 7... Ne4 {[%clk 0:04:49.6]} 8. O-O
{[%clk 0:04:53.2]} 8... d5 {[%clk 0:04:47.9]} 9. exd6 {[%clk 0:04:42.3]} 9...
Nxd6 {[%clk 0:04:46.4]} 10. Bd3 {[%clk 0:04:31.9]} 10... O-O {[%clk 0:04:34.1]}
11. Bb2 {[%clk 0:04:19.8]} 11... Bf6 {[%clk 0:04:29.9]} 12. a3 {[%clk
0:04:16.2]} 12... dxc3 {[%clk 0:04:26.9]} 13. Nxc3 {[%clk 0:04:14.8]} 13... Bg4
{[%clk 0:04:20.2]} 14. h3 {[%clk 0:04:10.4]} 14... Bh5 {[%clk 0:04:16.2]} 15.
Be2 {[%clk 0:04:07.3]} 15... Re8 {[%clk 0:04:11.8]} 16. Qd5 {[%clk 0:03:57.1]}
16... Bg6 {[%clk 0:03:56.6]} 17. Rfe1 {[%clk 0:03:44.2]} 17... Ne7 {[%clk
0:03:31.9]} 18. Qd2 {[%clk 0:03:33.1]} 18... Ne4 {[%clk 0:03:25.1]} 19. Qc1
{[%clk 0:03:12.4]} 19... Nxc3 {[%clk 0:03:17.2]} 20. Bxc3 {[%clk 0:03:12.3]}
20... Bxc3 {[%clk 0:03:15.2]} 21. Qxc3 {[%clk 0:03:12.2]} 21... c6 {[%clk
0:03:11.2]} 22. Bc4 {[%clk 0:03:08.8]} 22... Nd5 {[%clk 0:03:07.4]} 23. Rxe8+
{[%clk 0:03:07.6]} 23... Qxe8 {[%clk 0:03:05.6]} 24. Bxd5 {[%clk 0:03:07.1]}
24... cxd5 {[%clk 0:03:05.3]} 25. Rd1 {[%clk 0:03:06.1]} 25... Be4 {[%clk
0:03:04.3]} 26. Nd4 {[%clk 0:02:58.1]} 26... Rc8 {[%clk 0:03:02]} 27. Qe3 {[%clk
0:02:55.6]} 27... Qd8 {[%clk 0:02:50.3]} 28. Nb5 {[%clk 0:02:37.4]} 28... a6
{[%clk 0:02:25.9]} 29. Nc3 {[%clk 0:02:25]} 29... Qf6 {[%clk 0:01:49.7]} 30.
Nxe4 {[%clk 0:02:19.2]} 30... dxe4 {[%clk 0:01:45.1]} 31. Qxe4 {[%clk
0:02:19.1]} 31... Qb6 {[%clk 0:01:29.9]} 32. Rd7 {[%clk 0:02:11.2]} 32... h6
{[%clk 0:00:36.8]} 33. Rxb7 {[%clk 0:02:06.4]} 33... Qd6 {[%clk 0:00:33.4]} 34.
Qf5 {[%clk 0:01:40.7]} 34... Rc1# {[%clk 0:00:30.5]} 0-1

[Event "Live Chess"]
[Site "Chess.com"]
[Date "2023.05.21"]
[Round "-"]
[White "Singapourfeuj"]
[Black "KirbyHasARevenge"]
[Result "1-0"]
[WhiteElo "2214"]
[BlackElo "1738"]
[TimeControl "300"]
[EndTime "23:39:15 PDT"]
[Termination "Singapourfeuj won by checkmate"]

1. d4 {[%clk 0:04:59.3]} 1... Nf6 {[%clk 0:04:58.3]} 2. Nf3 {[%clk 0:04:57.9]}
2... g6 {[%clk 0:04:57.5]} 3. Nc3 {[%clk 0:04:55.6]} 3... Bg7 {[%clk 0:04:56.7]}
4. e4 {[%clk 0:04:54.8]} 4... d6 {[%clk 0:04:54.7]} 5. Be2 {[%clk 0:04:53.8]}
5... O-O {[%clk 0:04:53.8]} 6. O-O {[%clk 0:04:52.9]} 6... Nbd7 {[%clk
0:04:52.4]} 7. a4 {[%clk 0:04:52.1]} 7... e5 {[%clk 0:04:51.6]} 8. a5 {[%clk
0:04:50.8]} 8... Qe7 {[%clk 0:04:50.9]} 9. d5 {[%clk 0:04:49.6]} 9... Nc5 {[%clk
0:04:48.5]} 10. Nd2 {[%clk 0:04:46]} 10... Bh6 {[%clk 0:04:46.3]} 11. b4 {[%clk
0:04:44.1]} 11... Bxd2 {[%clk 0:04:42.6]} 12. Bxd2 {[%clk 0:04:43.2]} 12...
Ncxe4 {[%clk 0:04:41.2]} 13. Be1 {[%clk 0:04:40.6]} 13... Bf5 {[%clk 0:04:33.4]}
14. Nxe4 {[%clk 0:04:38.9]} 14... Bxe4 {[%clk 0:04:27.5]} 15. c4 {[%clk
0:04:37.9]} 15... Bf5 {[%clk 0:04:22.1]} 16. a6 {[%clk 0:04:30.5]} 16... b6
{[%clk 0:04:18.3]} 17. Rc1 {[%clk 0:04:29.4]} 17... Rab8 {[%clk 0:04:01.4]} 18.
Bc3 {[%clk 0:04:26.7]} 18... Ne4 {[%clk 0:03:59.5]} 19. Bb2 {[%clk 0:04:25.5]}
19... Qh4 {[%clk 0:03:41.8]} 20. g3 {[%clk 0:04:22.7]} 20... Qh3 {[%clk
0:03:27.4]} 21. f3 {[%clk 0:04:21.4]} 21... Nxg3 {[%clk 0:03:23.3]} 22. Rf2
{[%clk 0:04:09.3]} 22... Nh5 {[%clk 0:03:12.1]} 23. Bf1 {[%clk 0:04:06.9]} 23...
Qh4 {[%clk 0:03:09.7]} 24. Qe1 {[%clk 0:03:59.8]} 24... Nf4 {[%clk 0:03:06.7]}
25. Rd2 {[%clk 0:03:57.6]} 25... Qg5+ {[%clk 0:03:02.5]} 26. Qg3 {[%clk
0:03:55.5]} 26... Nh3+ {[%clk 0:02:54.2]} 27. Bxh3 {[%clk 0:03:48.4]} 27...
Qxg3+ {[%clk 0:02:45]} 28. hxg3 {[%clk 0:03:47]} 28... Bxh3 {[%clk 0:02:41.6]}
29. g4 {[%clk 0:03:44.6]} 29... f5 {[%clk 0:02:38.6]} 30. g5 {[%clk 0:03:43.3]}
30... f4 {[%clk 0:02:36.5]} 31. Kf2 {[%clk 0:03:38.9]} 31... Bf5 {[%clk
0:02:35.5]} 32. b5 {[%clk 0:03:28.9]} 32... Bd7 {[%clk 0:02:28.2]} 33. Rh1
{[%clk 0:03:26.8]} 33... Rf5 {[%clk 0:02:26.5]} 34. Rg1 {[%clk 0:03:23.3]} 34...
Rf7 {[%clk 0:02:20.2]} 35. Rg2 {[%clk 0:03:21.6]} 35... Re8 {[%clk 0:02:19.5]}
36. Re2 {[%clk 0:03:19.9]} 36... Bf5 {[%clk 0:02:17.5]} 37. Rh2 {[%clk
0:03:17.4]} 37... Bd3 {[%clk 0:02:16]} 38. Re4 {[%clk 0:03:09.1]} 38... Bxe4
{[%clk 0:02:11.1]} 39. fxe4 {[%clk 0:03:08.1]} 39... f3 {[%clk 0:02:10.4]} 40.
Bc1 {[%clk 0:03:07.2]} 40... Ref8 {[%clk 0:01:59.2]} 41. Rh4 {[%clk 0:03:05.9]}
41... Kg7 {[%clk 0:01:55.4]} 42. Be3 {[%clk 0:03:04.2]} 42... Rf4 {[%clk
0:01:36.6]} 43. Bxf4 {[%clk 0:03:02.1]} 43... Rxf4 {[%clk 0:01:36.5]} 44. Rxf4
{[%clk 0:02:59.7]} 44... exf4 {[%clk 0:01:36.4]} 45. Kxf3 {[%clk 0:02:58.9]}
45... h6 {[%clk 0:01:33.3]} 46. gxh6+ {[%clk 0:02:57]} 46... Kxh6 {[%clk
0:01:32.2]} 47. Kxf4 {[%clk 0:02:56.4]} 47... Kh5 {[%clk 0:01:30.7]} 48. e5
{[%clk 0:02:53]} 48... dxe5+ {[%clk 0:01:28.5]} 49. Kxe5 {[%clk 0:02:51.8]}
49... g5 {[%clk 0:01:28.1]} 50. c5 {[%clk 0:02:49.5]} 50... g4 {[%clk
0:01:23.5]} 51. cxb6 {[%clk 0:02:46.4]} 51... g3 {[%clk 0:01:22.5]} 52. bxc7
{[%clk 0:02:44.8]} 52... g2 {[%clk 0:01:21.5]} 53. c8=Q {[%clk 0:02:43.4]} 53...
g1=Q {[%clk 0:01:20.7]} 54. Qh8+ {[%clk 0:02:41.7]} 54... Kg4 {[%clk 0:00:59.1]}
55. Qg7+ {[%clk 0:02:40.3]} 55... Kf3 {[%clk 0:00:58.8]} 56. Qxg1 {[%clk
0:02:38.9]} 56... Ke2 {[%clk 0:00:57.4]} 57. Ke4 {[%clk 0:02:35]} 57... Kd2
{[%clk 0:00:56.3]} 58. Qe3+ {[%clk 0:02:34.1]} 58... Kc2 {[%clk 0:00:55.2]} 59.
Kd4 {[%clk 0:02:33.4]} 59... Kb2 {[%clk 0:00:54.2]} 60. Kc4 {[%clk 0:02:32.5]}
60... Ka2 {[%clk 0:00:53.2]} 61. Qd2+ {[%clk 0:02:30.9]} 61... Ka3 {[%clk
0:00:51.2]} 62. Qe2 {[%clk 0:02:28.8]} 62... Ka4 {[%clk 0:00:49.2]} 63. Qa2#
{[%clk 0:02:27.9]} 1-0

[Event "Live Chess"]
[Site "Chess.com"]
[Date "2023.05.21"]
[Round "-"]
[White "Davidagye"]
[Black "Biranidun"]
[Result "0-1"]
[WhiteElo "1671"]
[BlackElo "2560"]
[TimeControl "300"]
[EndTime "23:39:16 PDT"]
[Termination "Biranidun won by resignation"]

1. b4 {[%clk 0:04:55.9]} 1... e5 {[%clk 0:04:58.6]} 2. Bb2 {[%clk 0:04:52.5]}
2... Bxb4 {[%clk 0:04:57.4]} 3. f4 {[%clk 0:04:50.8]} 3... exf4 {[%clk
0:04:55.6]} 4. Bxg7 {[%clk 0:04:49.5]} 4... Qh4+ {[%clk 0:04:54.3]} 5. g3 {[%clk
0:04:47.6]} 5... fxg3 {[%clk 0:04:53.8]} 6. Bg2 {[%clk 0:04:46.8]} 6... gxh2+
{[%clk 0:04:50.1]} 7. Kf1 {[%clk 0:04:45.9]} 7... hxg1=Q+ {[%clk 0:04:27.4]} 8.
Kxg1 {[%clk 0:04:44.7]} 8... Bc5+ {[%clk 0:04:11.4]} 9. e3 {[%clk 0:04:37.9]}
9... Qg5 {[%clk 0:03:57.3]} 10. Bxh8 {[%clk 0:04:35.4]} 10... d6 {[%clk
0:03:33.6]} 11. Rxh7 {[%clk 0:04:30.3]} 11... Ne7 {[%clk 0:03:22.3]} 12. Nc3
{[%clk 0:03:47.4]} 12... Bf5 {[%clk 0:03:12.8]} 13. Rh5 {[%clk 0:03:19]} 13...
Qg6 {[%clk 0:03:09.9]} 14. Qf1 {[%clk 0:02:58.1]} 14... Qxh5 {[%clk 0:03:06]}
15. Bxb7 {[%clk 0:02:54.4]} 15... Qxh8 {[%clk 0:03:02.5]} 16. Bxa8 {[%clk
0:02:53.2]} 16... c6 {[%clk 0:02:59.3]} 17. Rb1 {[%clk 0:02:49.7]} 17... Bb6
{[%clk 0:02:42]} 18. Qf4 {[%clk 0:02:34.6]} 18... Qg7+ {[%clk 0:02:29.8]} 19.
Kf2 {[%clk 0:02:30.3]} 19... Bxc2 {[%clk 0:02:09.7]} 20. Rb2 {[%clk 0:01:59.4]}
20... Qg6 {[%clk 0:02:01.5]} 21. a4 {[%clk 0:01:49.2]} 21... Nd7 {[%clk
0:01:59.6]} 22. Qf3 {[%clk 0:01:32.5]} 22... Ne5 {[%clk 0:01:57.6]} 0-1

[Event "Live Chess"]
[Site "Chess.com"]
[Date "2023.05.21"]
[Round "-"]
[White "Pandreq"]
[Black "Tushinskiy"]
[Result "0-1"]
[WhiteElo "1252"]
[BlackElo "2188"]
[TimeControl "300"]
[EndTime "23:39:56 PDT"]
[Termination "Tushinskiy won by resignation"]

1. d4 {[%clk 0:04:56.9]} 1... d5 {[%clk 0:04:58.4]} 2. c4 {[%clk 0:04:55.8]}
2... c6 {[%clk 0:04:58.3]} 3. Nc3 {[%clk 0:04:54.3]} 3... e6 {[%clk 0:04:57.1]}
4. e3 {[%clk 0:04:50.1]} 4... Nf6 {[%clk 0:04:54.5]} 5. Nf3 {[%clk 0:04:48.8]}
5... Bd6 {[%clk 0:04:53.9]} 6. c5 {[%clk 0:04:45.4]} 6... Bc7 {[%clk 0:04:52.6]}
7. b4 {[%clk 0:04:39.6]} 7... Nbd7 {[%clk 0:04:52.5]} 8. b5 {[%clk 0:04:36.8]}
8... e5 {[%clk 0:04:50.1]} 9. bxc6 {[%clk 0:04:30.5]} 9... bxc6 {[%clk
0:04:46.4]} 10. Qe2 {[%clk 0:04:14.7]} 10... a5 {[%clk 0:04:36.2]} 11. g3 {[%clk
0:04:08.1]} 11... h5 {[%clk 0:04:16]} 12. Bg2 {[%clk 0:03:53.7]} 12... e4 {[%clk
0:04:08]} 13. Nd2 {[%clk 0:03:52.2]} 13... h4 {[%clk 0:04:05.7]} 14. O-O {[%clk
0:03:46.9]} 14... Ba6 {[%clk 0:03:27.2]} 15. Qd1 {[%clk 0:03:26.2]} 15... hxg3
{[%clk 0:03:21.7]} 16. fxg3 {[%clk 0:03:19.3]} 16... Bxf1 {[%clk 0:03:19.1]} 17.
Qxf1 {[%clk 0:03:19.2]} 17... Ng4 {[%clk 0:03:18.3]} 18. Bh3 {[%clk 0:03:00.6]}
18... Nxe3 {[%clk 0:03:09.7]} 0-1